[Event "GER-ch Youth U16w 2019"]
[Site "Willingen"]
[Date "2019.06.15"]
[Round "9.9"]
[White "Wucherer, Sophie"]
[Black "Stowicek, Yara Mathilda"]
[Result "1/2-1/2"]
[ECO "A48"]
[WhiteElo "1496"]
[BlackElo "1692"]
[Annotator "NA"]
[PlyCount "79"]
[EventDate "2019.06.07"]
[EventType "swiss"]
[EventRounds "9"]
[EventCountry "GER"]
[SourceTitle "playchess.com"]
[Source "ChessBase"]
[SourceQuality "1"]
[TimeControl "40/5400+30:1800+30"]

1. d4 {[%emt 0:00:00]} Nf6 {[%emt 0:00:00]} 2. Nf3 {[%emt 0:00:00]} g6 {[%emt 0:00:00]} 3. c4 {[%emt 0:00:00]} c5 {[%emt 0:00:10]} 4. d5 {[%emt 0:00:43]} b5 {[%emt 0:00:46]} 5. cxb5 {[%emt 0:06:35]} a6 {[%emt 0:00:47]} 6. Nc3 {[%emt 0:00:28]} Bg7 {[%emt 0:01:34]} 7. e4 {[%emt 0:00:55]} d6 {[%emt 0:01:02]} 8. Qc2 {[%emt 0:02:39]} O-O {[%emt 0:02:37]} 9. Be2 {[%emt 0:05:25]} axb5 {[%emt 0:03:34]} 10. Nxb5 {[%emt 0:00:43]} Ba6 {[%emt 0:01:00]} 11. O-O {[%emt 0:01:19]} Qb6 {[%emt 0:01:32]} 12. a4 {[%emt 0:00:49]} Nbd7 {[%emt 0:05:30]} 13. Ra2 {[%emt 0:05:49]} Rfb8 {[%emt 0:01:37]} 14. b3 {[%emt 0:01:29]} Ne8 {[%emt 0:02:56]} 15. Be3 {[%emt 0:08:02]} Nc7 {[%emt 0:05:20]} 16. a5 {[%emt 0:09:56]} Qb7 {[%emt 0:01:12]} 17. Nxc7 {[%emt 0:00:47]} Qxc7 {[%emt 0:00:34]} 18. Bxa6 {[%emt 0:01:45]} Rxa6 {[%emt 0:00:17]} 19. Bd2 {[%emt 0:00:12]} Qb7 {[%emt 0:03:43]} 20. Rb1 {[%emt 0:00:16]} Ra7 {[%emt 0:04:39]} 21. Ne1 {[%emt 0:09:44]} Qb5 {[%emt 0:07:47]} 22. Ra3 {[%emt 0:03:31]} Nb6 {[%emt 0:03:28]} 23. Bc3 {[%emt 0:08:21]} Bxc3 {[%emt 0:04:15]} 24. Qxc3 {[%emt 0:00:07]} Nc4 {[%emt 0:00:59]} 25. Ra4 {[%emt 0:03:13]} Nxa5 {[%emt 0:04:10]} 26. Rba1 {[%emt 0:00:37]} Rba8 {[%emt 0:01:01]} 27. b4 {[%emt 0:04:59]} cxb4 {[%emt 0:01:37]} 28. Rxb4 {[%emt 0:00:07]} Qd7 {[%emt 0:01:48]} 29. Rba4 {[%emt 0:01:12]} Qb5 {[%emt 0:00:52]} 30. Rb4 {[%emt 0:09:29]} Qd7 {[%emt 0:00:35]} 31. Rab1 {[%emt 0:00:14]} Qc8 {[%emt 0:07:51]} 32. Qxc8+ {[%emt 0:01:48]} Rxc8 {[%emt 0:00:27]} 33. Ra1 {[%emt 0:00:28]} Rca8 {[%emt 0:02:25]} 34. Rba4 {[%emt 0:00:10]} Nc6 {[%emt 0:01:29]} 35. Rxa7 {[%emt 0:01:18]} Rxa7 {[%emt 0:01:04]} 36. Rxa7 {[%emt 0:02:55]} Nxa7 {[%emt 0:00:07]} 37. Nd3 {[%emt 0:00:07]} Nb5 {[%emt 0:01:22]} 38. f3 {[%emt 0:04:09]} Kg7 {[%emt 0:02:26]} 39. Kf2 {[%emt 0:00:21]} f6 {[%emt 0:05:03]} 40. Ke3 {[%emt 0:00:20] normal} 1/2-1/2

[Event "GER-ch Youth U16w 2019"]
[Site "Willingen"]
[Date "2019.06.15"]
[Round "9.10"]
[White "Klemke, Kassandra"]
[Black "Jacoby, Angelina"]
[Result "1-0"]
[ECO "A00"]
[WhiteElo "1662"]
[BlackElo "1412"]
[Annotator "NA"]
[PlyCount "91"]
[EventDate "2019.06.07"]
[EventType "swiss"]
[EventRounds "9"]
[EventCountry "GER"]
[SourceTitle "playchess.com"]
[Source "ChessBase"]
[SourceQuality "1"]
[TimeControl "40/5400+30:1800+30"]

1. a3 {[%emt 0:00:00]} d5 {[%emt 0:00:00]} 2. Nf3 {[%emt 0:00:00]} Nf6 {[%emt 0:00:11]} 3. g3 {[%emt 0:00:30]} Bf5 {[%emt 0:00:32]} 4. Bg2 {[%emt 0:00:45]} e6 {[%emt 0:01:02]} 5. O-O {[%emt 0:02:08]} Be7 {[%emt 0:00:20]} 6. d4 {[%emt 0:01:12]} h6 {[%emt 0:01:38]} 7. c4 {[%emt 0:01:10]} c6 {[%emt 0:00:30]} 8. Nc3 {[%emt 0:17:23]} Nbd7 {[%emt 0:00:28]} 9. Nd2 {[%emt 0:14:33]} O-O {[%emt 0:03:44]} 10. e4 {[%emt 0:01:25]} dxe4 {[%emt 0:01:01]} 11. Ndxe4 {[%emt 0:00:23]} Nxe4 {[%emt 0:01:28]} 12. Nxe4 {[%emt 0:00:12]} e5 {[%emt 0:19:27]} 13. d5 {[%emt 0:13:12]} cxd5 {[%emt 0:00:28]} 14. Qxd5 {[%emt 0:02:29]} Rb8 {[%emt 0:09:27]} 15. b4 {[%emt 0:07:56]} Be6 {[%emt 0:02:03]} 16. Qd3 {[%emt 0:01:05]} Nf6 {[%emt 0:04:30]} 17. Qxd8 {[%emt 0:06:57]} Rfxd8 {[%emt 0:03:39]} 18. c5 {[%emt 0:00:30]} Nxe4 {[%emt 0:01:43]} 19. Bxe4 {[%emt 0:00:12]} Bd5 {[%emt 0:02:26]} 20. Bxd5 {[%emt 0:03:12]} Rxd5 {[%emt 0:00:10]} 21. Be3 {[%emt 0:00:10]} a6 {[%emt 0:02:13]} 22. Rfc1 {[%emt 0:01:42]} Rc8 {[%emt 0:01:55]} 23. Rc3 {[%emt 0:02:26]} Rd7 {[%emt 0:03:30]} 24. Rac1 {[%emt 0:01:11]} Rdc7 {[%emt 0:01:42]} 25. Rc4 {[%emt 0:05:48]} Kf8 {[%emt 0:03:49]} 26. Re4 {[%emt 0:05:32]} f6 {[%emt 0:01:08]} 27. f4 {[%emt 0:01:32]} exf4 {[%emt 0:02:06]} 28. Bxf4 {[%emt 0:00:06]} Rc6 {[%emt 0:00:51]} 29. Rce1 {[%emt 0:00:37]} g5 {[%emt 0:04:02]} 30. Rxe7 {[%emt 0:04:35]} gxf4 {[%emt 0:00:16]} 31. Rxb7 {[%emt 0:00:35]} fxg3 {[%emt 0:02:31]} 32. hxg3 {[%emt 0:00:11]} R8c7 {[%emt 0:00:52]} 33. Rxc7 {[%emt 0:00:24]} Rxc7 {[%emt 0:00:04]} 34. Re6 {[%emt 0:00:24]} a5 {[%emt 0:00:41]} 35. Rxf6+ {[%emt 0:00:30]} Kg7 {[%emt 0:00:10]} 36. Ra6 {[%emt 0:00:14]} axb4 {[%emt 0:00:11]} 37. axb4 {[%emt 0:00:08]} h5 {[%emt 0:00:12]} 38. c6 {[%emt 0:00:35]} Kf6 {[%emt 0:01:45]} 39. b5 {[%emt 0:00:49]} Ke6 {[%emt 0:01:03]} 40. Rb6 {[%emt 0:02:50]} Kd6 {[%emt 0:02:07]} 41. Rb7 {[%emt 0:32:04]} Rc8 {[%emt 0:30:38]} 42. Kh2 {[%emt 0:01:35]} Ke6 {[%emt 0:01:37]} 43. Kh3 {[%emt 0:00:25]} Kf5 {[%emt 0:00:05]} 44. c7 {[%emt 0:00:00]} Ke6 {[%emt 0:00:00]} 45. b6 {[%emt 0:00:00]} Kd7 {[%emt 0:00:00]} 46. Rb8 {normal} 1-0

[Event "GER-ch Youth U16w 2019"]
[Site "Willingen"]
[Date "2019.06.15"]
[Round "9.11"]
[White "Peschel, Julia"]
[Black "Schneider, Katharina"]
[Result "1-0"]
[ECO "C54"]
[WhiteElo "1275"]
[BlackElo "1784"]
[Annotator "NA"]
[PlyCount "69"]
[EventDate "2019.06.07"]
[EventType "swiss"]
[EventRounds "9"]
[EventCountry "GER"]
[SourceTitle "playchess.com"]
[Source "ChessBase"]
[SourceQuality "1"]
[TimeControl "40/5400+30:1800+30"]

1. e4 {[%emt 0:00:00]} e5 {[%emt 0:00:00]} 2. Nf3 {[%emt 0:00:00]} Nc6 {[%emt 0:00:00]} 3. Bc4 {[%emt 0:00:00]} Bc5 {[%emt 0:00:00]} 4. c3 {[%emt 0:00:03]} Nf6 {[%emt 0:00:00]} 5. d3 {[%emt 0:00:20]} a6 {[%emt 0:00:04]} 6. O-O {[%emt 0:01:12]} Ba7 {[%emt 0:01:31]} 7. Bb3 {[%emt 0:00:49]} d6 {[%emt 0:00:54]} 8. Nbd2 {[%emt 0:01:48]} O-O {[%emt 0:02:50]} 9. h3 {[%emt 0:01:17]} h6 {[%emt 0:00:09]} 10. Re1 {[%emt 0:00:46]} Ne7 {[%emt 0:00:46]} 11. Nf1 {[%emt 0:02:33]} Ng6 {[%emt 0:00:41]} 12. Ng3 {[%emt 0:07:34]} Be6 {[%emt 0:01:10]} 13. Bc2 {[%emt 0:00:24]} Qd7 {[%emt 0:03:34]} 14. d4 {[%emt 0:20:43]} Rfd8 {[%emt 0:10:38]} 15. Be3 {[%emt 0:09:57]} c6 {[%emt 0:02:59]} 16. Qd2 {[%emt 0:03:56]} Qc7 {[%emt 0:02:38]} 17. a3 {[%emt 0:01:46]} d5 {[%emt 0:03:11]} 18. exd5 {[%emt 0:01:57]} Nxd5 {[%emt 0:15:03]} 19. Bxg6 {[%emt 0:04:50]} Nxe3 {[%emt 0:02:14]} 20. Bxf7+ {[%emt 0:02:31]} Bxf7 {[%emt 0:00:10]} 21. Qxe3 {[%emt 0:02:26]} exd4 {[%emt 0:00:25]} 22. Nxd4 {[%emt 0:00:18]} Re8 {[%emt 0:07:55]} 23. Qf3 {[%emt 0:04:19]} Bd5 {[%emt 0:03:09]} 24. Qg4 {[%emt 0:01:10]} Kh8 {[%emt 0:08:23]} 25. Ngf5 {[%emt 0:05:40]} c5 {[%emt 0:05:41]} 26. Nf3 {[%emt 0:02:09]} Rad8 {[%emt 0:02:55]} 27. Rad1 {[%emt 0:01:48]} Rxe1+ {[%emt 0:05:42]} 28. Rxe1 {[%emt 0:00:11]} Bxf3 {[%emt 0:02:03]} 29. Qxf3 {[%emt 0:01:17]} Bb8 {[%emt 0:03:26]} 30. g3 {[%emt 0:01:24]} Rf8 {[%emt 0:01:40]} 31. Qg4 {[%emt 0:01:09]} Rf7 {[%emt 0:01:43]} 32. Nxh6 {[%emt 0:04:07]} Rf6 {[%emt 0:02:20]} 33. Nf5 {[%emt 0:01:37]} Rf7 {[%emt 0:03:10]} 34. Re8+ {[%emt 0:00:23]} Kh7 {[%emt 0:00:09]} 35. Re6 {normal} 1-0

[Event "GER-ch Youth U16w 2019"]
[Site "Willingen"]
[Date "2019.06.15"]
[Round "9.12"]
[White "Sinnhoefer, Lilian"]
[Black "Genova, Magdalina"]
[Result "1-0"]
[ECO "B98"]
[WhiteElo "1396"]
[BlackElo "1421"]
[Annotator "NA"]
[PlyCount "63"]
[EventDate "2019.06.07"]
[EventType "swiss"]
[EventRounds "9"]
[EventCountry "GER"]
[SourceTitle "playchess.com"]
[Source "ChessBase"]
[SourceQuality "1"]
[TimeControl "40/5400+30:1800+30"]

1. e4 {[%emt 0:00:00]} c5 {[%emt 0:00:00]} 2. Nf3 {[%emt 0:00:15]} d6 {[%emt 0:00:00]} 3. d4 {[%emt 0:00:05]} cxd4 {[%emt 0:00:00]} 4. Nxd4 {[%emt 0:00:36]} Nf6 {[%emt 0:00:00]} 5. Nc3 {[%emt 0:01:35]} a6 {[%emt 0:00:07]} 6. Bg5 {[%emt 0:00:18]} e6 {[%emt 0:00:25]} 7. f4 {[%emt 0:00:39]} Be7 {[%emt 0:04:10]} 8. Qf3 {[%emt 0:04:00]} Qc7 {[%emt 0:01:45]} 9. g4 {[%emt 0:03:12]} Nbd7 {[%emt 0:12:05]} 10. O-O-O {[%emt 0:04:32]} b5 {[%emt 0:10:27]} 11. Bxf6 {[%emt 0:03:07]} Nxf6 {[%emt 0:07:11]} 12. g5 {[%emt 0:01:51]} Nd7 {[%emt 0:01:04]} 13. f5 {[%emt 0:10:40]} Bxg5+ {[%emt 0:44:43]} 14. Kb1 {[%emt 0:00:36]} e5 {[%emt 0:08:51]} 15. Nd5 {[%emt 0:05:04]} Qb7 {[%emt 0:01:25]} 16. Qh5 {[%emt 0:04:36]} Bh6 {[%emt 0:02:14]} 17. Ne6 {[%emt 0:03:34]} Nb6 {[%emt 0:00:36]} 18. Nec7+ {[%emt 0:00:41]} Kf8 {[%emt 0:00:46]} 19. Nxb6 {[%emt 0:01:35]} Qxb6 {[%emt 0:00:39]} 20. Nxa8 {[%emt 0:00:14]} Qc6 {[%emt 0:00:06]} 21. Bg2 {[%emt 0:01:03]} Bb7 {[%emt 0:00:19]} 22. f6 {[%emt 0:05:51]} Bxa8 {[%emt 0:01:07]} 23. fxg7+ {[%emt 0:01:18]} Bxg7 {[%emt 0:00:07]} 24. Rhf1 {[%emt 0:00:31]} Qc7 {[%emt 0:00:50]} 25. Rxd6 {[%emt 0:00:29]} f6 {[%emt 0:01:49]} 26. Rfd1 {[%emt 0:03:33]} Kg8 {[%emt 0:01:18]} 27. Rd8+ {[%emt 0:00:27]} Bf8 {[%emt 0:00:05]} 28. Rxa8 {[%emt 0:01:44]} Qc5 {[%emt 0:01:04]} 29. Qg4+ {[%emt 0:00:38]} Kf7 {[%emt 0:00:04]} 30. Rd7+ {[%emt 0:00:51]} Be7 {[%emt 0:00:13]} 31. Rxh8 {[%emt 0:00:36]} Qg1+ {[%emt 0:00:37]} 32. Rd1 {[%emt 0:00:06] normal} 1-0